fUST/lending_fUST_20260117
["ID","MTS","AMOUNT","RATE_DAILY","PERIOD"]
[402300415,1768651865294,-364.90375644,0.0001726,3]
[402300417,1768651865305,-342.33666613,0.0001726,3]
[402300419,1768651865316,-500.0,0.0001726,3]
[402300421,1768651865327,-500.0,0.0001726,3]
[402300423,1768651865339,-585.26643986,0.0001726,3]
[402300426,1768651865350,-500.0,0.0001726,3]
[402300428,1768651865361,-500.0,0.0001726,3]
[402300430,1768651865373,-215.10452107,0.0001726,3]
[402300473,1768651865763,-500.0,0.0001726,3]
[402300476,1768651865786,-500.0,0.0001726,3]
[402300479,1768651865800,-500.0,0.0001726,3]
[402300481,1768651865810,-500.0,0.0001726,3]
[402300483,1768651865819,-500.0,0.0001726,3]
[402300485,1768651865828,-500.0,0.0001726,3]
[402300487,1768651865838,-500.0,0.0001726,3]
[402300489,1768651865847,-500.0,0.0001726,3]
[402300491,1768651865856,-994.72,0.0001726,3]
[402300493,1768651865865,-500.0,0.0001726,3]
[402300495,1768651865874,-500.0,0.0001726,3]
[402300497,1768651865885,-532.76,0.0001726,3]
[402300499,1768651865895,-836.98,0.0001726,3]
[402300501,1768651865904,-500.0,0.0001726,3]
[402300503,1768651865913,-500.0,0.0001726,3]
[402300505,1768651865922,-530.67,0.0001726,3]
[402300507,1768651865931,-683.81,0.0001726,3]
[402300509,1768651865940,-500.0,0.0001726,3]
[402300511,1768651865949,-921.29,0.0001726,3]
[402300513,1768651865959,-1168.38,0.0001726,3]
[402300515,1768651865968,-500.0,0.0001726,3]
[402300517,1768651865977,-763.39,0.0001726,3]
[402300519,1768651865987,-655.11,0.0001726,3]
[402300521,1768651865996,-765.23,0.0001726,3]
[402300523,1768651866005,-598.79,0.0001726,3]
[402300524,1768651866016,-600.74,0.0001726,3]
[402300526,1768651866025,-500.0,0.0001726,3]
[402300529,1768651866035,-564.46,0.0001726,3]
[402300530,1768651866044,-1312.04,0.0001726,3]
[402300532,1768651866053,-500.0,0.0001726,3]
[402300534,1768651866063,-500.0,0.0001726,3]
[402300536,1768651866072,-1758.14,0.0001726,3]
[402300538,1768651866081,-912.65,0.0001726,3]
[402300540,1768651866091,-1230.0,0.0001726,3]
[402300542,1768651866100,-500.0,0.0001726,3]
[402300544,1768651866109,-500.0,0.0001726,3]
[402300546,1768651866118,-1409.92,0.0001726,3]
[402300548,1768651866128,-500.0,0.0001726,3]
[402300550,1768651866137,-1406.24,0.0001726,3]
[402300552,1768651866146,-809.71,0.0001726,3]
[402300554,1768651866155,-500.0,0.0001726,3]
[402300556,1768651866164,-538.59,0.0001726,3]
[402300558,1768651866174,-1383.77,0.0001726,3]
[402300560,1768651866183,-500.0,0.0001726,3]
[402300562,1768651866193,-500.0,0.0001726,3]
[402300564,1768651866203,-1022.1,0.0001726,3]
[402300566,1768651866212,-500.0,0.0001726,3]
[402300568,1768651866221,-511.37056454,0.0001726,3]
[402300570,1768651866233,-500.0,0.0001726,3]
[402300572,1768651866243,-500.0,0.0001726,3]
[402300574,1768651866252,-599.66,0.0001726,3]
[402300576,1768651866263,-500.0,0.0001726,3]
[402300578,1768651866272,-500.0,0.0001726,3]
[402300580,1768651866281,-648.5,0.0001726,3]
[402300582,1768651866291,-500.0,0.0001726,3]
[402300584,1768651866300,-500.0,0.0001726,3]
[402300586,1768651866309,-200.4028635,0.0001726,3]
[402300588,1768651866319,-970.35,0.0001726,3]
[402300590,1768651866328,-500.0,0.0001726,3]
[402300591,1768651866337,-564.03397583,0.0001726,3]
[402300593,1768651866346,-519.22,0.0001726,3]
[402300595,1768651866355,-500.0,0.0001726,3]
[402300597,1768651866364,-1630.88,0.0001726,3]
[402300599,1768651866373,-500.0,0.0001726,3]
[402300601,1768651866383,-1847.85,0.0001726,3]
[402300603,1768651866392,-500.0,0.0001726,3]
[402300605,1768651866402,-1136.82,0.0001726,3]
[402300607,1768651866411,-500.0,0.0001726,3]
[402300609,1768651866420,-500.0,0.0001726,3]
[402300611,1768651866429,-1331.46,0.0001726,3]
[402300613,1768651866439,-500.0,0.0001726,3]
[402300615,1768651866448,-500.0,0.0001726,3]
[402300617,1768651866458,-500.0,0.0001726,3]
[402300619,1768651866467,-1232.85,0.0001726,3]
[402300621,1768651866476,-500.0,0.0001726,3]
[402300623,1768651866485,-500.0,0.0001726,3]
[402300625,1768651866495,-500.0,0.0001726,3]
[402300627,1768651866504,-1868.57,0.0001726,3]
[402300629,1768651866514,-1992.03,0.0001726,3]
[402300630,1768651866523,-500.0,0.0001726,3]
[402300631,1768651866531,-500.0,0.0001726,3]
[402300632,1768651866540,-500.0,0.0001726,3]
[402300633,1768651866549,-500.0,0.0001726,3]
[402300634,1768651866558,-1250.85,0.0001726,3]
[402300635,1768651866569,-500.0,0.0001726,3]
[402300636,1768651866578,-500.0,0.0001726,3]
[402300637,1768651866587,-500.0,0.0001726,3]
[402300638,1768651866597,-500.0,0.0001726,3]
[402300640,1768651866607,-500.0,0.0001726,3]
[402300642,1768651866616,-500.0,0.0001726,3]
[402300644,1768651866625,-594.12,0.0001726,3]
[402300646,1768651866634,-593.2,0.0001726,3]
[402300648,1768651866643,-557.6,0.0001726,3]
[402300650,1768651866652,-500.0,0.0001726,3]
[402300652,1768651866661,-500.0,0.0001726,3]
[402300654,1768651866677,-500.0,0.0001726,3]
[402300656,1768651866686,-500.0,0.0001726,3]
[402300658,1768651866696,-500.0,0.0001726,3]
[402300660,1768651866705,-500.0,0.0001726,3]
[402300662,1768651866714,-500.0,0.0001726,3]
[402300664,1768651866723,-500.0,0.0001726,3]
[402300666,1768651866733,-500.0,0.0001726,3]
[402300668,1768651866742,-500.0,0.0001726,3]
[402300670,1768651866751,-500.0,0.0001726,3]
[402300672,1768651866760,-740.69,0.0001726,3]
[402300674,1768651866770,-764.7,0.0001726,3]
[402300676,1768651866779,-1352.97,0.0001726,3]
[402300678,1768651866788,-500.0,0.0001726,3]
[402300680,1768651866797,-1495.28,0.0001726,3]
[402300682,1768651866806,-1481.16,0.0001726,3]
[402300684,1768651866816,-500.0,0.0001726,3]
[402300686,1768651866826,-904.57,0.0001726,3]
[402300688,1768651866835,-500.0,0.0001726,3]
[402300690,1768651866846,-500.0,0.0001726,3]
[402300692,1768651866856,-500.0,0.0001726,3]
[402300694,1768651866867,-500.0,0.0001726,3]
[402300696,1768651866876,-500.0,0.0001726,3]
[402300698,1768651866885,-500.0,0.0001726,3]
[402300700,1768651866893,-1979.77,0.0001726,3]
[402300702,1768651866903,-1339.12,0.0001726,3]
[402300704,1768651866912,-850.98,0.0001726,3]
[402300706,1768651866921,-500.0,0.0001726,3]
[402300708,1768651866931,-500.0,0.0001726,3]
[402300710,1768651866940,-500.0,0.0001726,3]
[402300712,1768651866949,-500.0,0.0001726,3]
[402300713,1768651866958,-641.97,0.0001726,3]
[402300716,1768651866968,-773.23,0.0001726,3]
[402300718,1768651866977,-725.74,0.0001726,3]
[402300720,1768651866987,-903.35,0.0001726,3]
[402300721,1768651866998,-13758.24,0.0001726,3]
[402300724,1768651867008,-785.1,0.0001726,3]
[402300726,1768651867023,-500.0,0.0001726,3]
[402300728,1768651867032,-500.0,0.0001726,3]
[402300730,1768651867042,-500.0,0.0001726,3]
[402300732,1768651867051,-500.0,0.0001726,3]
[402300734,1768651867064,-1493.7,0.0001726,3]
[402300736,1768651867074,-500.0,0.0001726,3]
[402300737,1768651867086,-500.0,0.0001726,3]
[402300739,1768651867096,-500.0,0.0001726,3]
[402300742,1768651867106,-1596.13,0.0001726,3]
[402300744,1768651867115,-1465.18,0.0001726,3]
[402300745,1768651867126,-2505.32,0.0001726,3]
[402300747,1768651867138,-1012.23,0.0001726,3]
[402300750,1768651867147,-664.79,0.0001726,3]
[402300751,1768651867157,-500.0,0.0001726,3]
[402300753,1768651867166,-500.0,0.0001726,2]
[402300755,1768651867178,-500.0,0.0001726,3]
[402300757,1768651867187,-500.0,0.0001726,3]
[402300760,1768651867196,-1641.53,0.0001726,3]
[402300762,1768651867205,-1092.92,0.0001726,3]
[402300763,1768651867214,-500.0,0.0001726,3]
[402300765,1768651867224,-500.0,0.0001726,3]
[402300767,1768651867234,-500.0,0.0001726,3]
[402300769,1768651867244,-500.0,0.0001726,3]
[402300771,1768651867253,-586.75,0.0001726,3]
[402300773,1768651867263,-500.0,0.0001726,3]
[402300775,1768651867272,-500.0,0.0001726,3]
[402300777,1768651867281,-1547.34,0.0001726,3]
[402300779,1768651867291,-500.0,0.0001726,3]
[402300781,1768651867300,-1341.79,0.0001726,3]
[402300783,1768651867310,-1750.39,0.0001726,3]
[402300785,1768651867319,-1019.95,0.0001726,3]
[402300787,1768651867329,-500.0,0.0001726,3]
[402300789,1768651867339,-500.0,0.0001726,3]
[402300791,1768651867348,-500.0,0.0001726,3]
[402300793,1768651867358,-598.49,0.0001726,3]
[402300795,1768651867367,-573.36,0.0001726,3]
[402300797,1768651867376,-500.0,0.0001726,3]
[402300799,1768651867386,-500.0,0.0001726,3]
[402300801,1768651867396,-2047.8,0.0001726,3]
[402300803,1768651867405,-894.34,0.0001726,3]
[402300805,1768651867415,-1571.33,0.0001726,3]
[402300807,1768651867424,-500.0,0.0001726,3]
[402300809,1768651867434,-500.0,0.0001726,3]
[402300811,1768651867443,-259.47517722,0.0001726,3]
[402300813,1768651867452,-500.0,0.0001726,3]
[402300815,1768651867461,-500.0,0.0001726,3]
[402300817,1768651867470,-1588.62,0.0001726,3]
[402300819,1768651867480,-500.0,0.0001726,3]
[402300821,1768651867489,-500.0,0.0001726,3]
[402300823,1768651867499,-1050.94,0.0001726,3]
[402300825,1768651867508,-500.0,0.0001726,3]
[402300827,1768651867518,-727.25,0.0001726,3]
[402300829,1768651867528,-151.0,0.0001726,2]
[402300832,1768651867537,-724.32,0.0001726,3]
[402300834,1768651867546,-151.0,0.0001726,2]
[402300836,1768651867556,-500.0,0.0001726,3]
[402300838,1768651867565,-500.0,0.0001726,3]
[402300840,1768651867574,-1159.94,0.0001726,3]
[402300842,1768651867584,-298.75076,0.0001726,2]
[402300844,1768651867593,-523.27211583,0.0001726,3]
[402300846,1768651867602,-500.0,0.0001726,3]
[402300848,1768651867612,-500.0,0.0001726,3]
[402300850,1768651867621,-500.0,0.0001726,3]
[402300852,1768651867631,-867.95,0.0001726,3]
[402300854,1768651867641,-511.2761014,0.0001726,3]
[402304146,1768652207365,165.06,8.271e-05,2]
[402304151,1768652254659,240.0,8.93e-05,2]
[402304154,1768652272723,204.71,6.662e-05,2]
[402304155,1768652273187,272.95,6.951e-05,2]
[402304156,1768652273669,341.19,7.241e-05,2]
[402304157,1768652274142,409.43,7.53e-05,2]
[402304158,1768652274618,477.67,7.82e-05,2]
[402304159,1768652275104,545.91,8.11e-05,2]
[402304160,1768652275568,614.14,8.399e-05,2]
[402304161,1768652276298,682.38,8.689e-05,2]
[402304189,1768652345983,192.39,6.572e-05,2]
[402304190,1768652346499,256.52,6.857e-05,2]
[402304191,1768652346963,320.64,7.143e-05,2]
[402304192,1768652347438,384.77,7.429e-05,2]
[402304193,1768652347861,448.9,7.715e-05,2]
[402304194,1768652348347,513.03,8e-05,2]
[402304195,1768652348832,577.16,8.286e-05,2]
[402304196,1768652349209,641.29,8.572e-05,2]
[402304198,1768652421246,151.81,7.738e-05,2]
[402304199,1768652421770,173.5,8.025e-05,2]
[402304200,1768652422160,195.19,8.311e-05,2]
[402304201,1768652422562,216.87,8.598e-05,2]
[402304207,1768652613874,5000.0,8.93e-05,2]
[402304209,1768652637664,5000.0,8.93e-05,2]
[402304211,1768652653561,0.01,8.93e-05,2]
[402304212,1768652653583,4999.99,8.93e-05,2]
[402304213,1768652661438,5000.0,8.93e-05,2]
[402304216,1768652677598,0.02,8.93e-05,2]
[402304217,1768652677622,4999.98,8.93e-05,2]
[402304220,1768652685452,5000.0,8.93e-05,2]
[402304221,1768652701465,5000.0,8.93e-05,2]
[402304223,1768652725536,5000.0,8.93e-05,2]
[402304224,1768652750183,5000.0,8.93e-05,2]
[402304225,1768652756510,172.34,8.852e-05,2]
[402304226,1768652772991,743.22581509,8.93e-05,2]
[402304227,1768652827311,159.18,8.84e-05,2]
[402304231,1768652885665,-272.3701998,8.949e-05,2]
[402304232,1768652885688,-309.87978471,9.064e-05,2]
[402304233,1768652885710,-72.32009911,9.18e-05,2]
[402304237,1768653005449,-161.88,8.988e-05,2]
[402304238,1768653005471,-17.29516074,8.988e-05,2]
[402304239,1768653008771,-452.9042016,8.988e-05,2]
[402304264,1768653034954,163.78,7.501e-05,2]
[402304265,1768653035504,191.08,7.789e-05,2]
[402304266,1768653035847,218.37,8.078e-05,2]
[402304267,1768653036747,245.67,8.366e-05,2]
[402304268,1768653036848,272.96,8.655e-05,2]
[402304275,1768653038645,-75.80063766,8.988e-05,2]
[402304276,1768653038656,-152.93233364,9.723e-05,2]
[402304277,1768653038666,-300.0,9.815e-05,2]
[402304278,1768653038676,-300.0,9.815e-05,2]
[402304279,1768653038687,-300.0,9.815e-05,2]
[402304280,1768653038697,-1200.0,9.815e-05,2]
[402304281,1768653038707,-500.0,9.816e-05,2]
[402304282,1768653038718,-1408.38465595,9.816e-05,2]
[402304283,1768653038730,-2942.1956689,9.816e-05,2]
[402304284,1768653038757,-3901.38757581,9.816e-05,2]
[402304285,1768653039005,-6813.08556657,9.816e-05,2]
[402304286,1768653039030,-34934.94653277,9.816e-05,2]
[402304287,1768653039040,-500.0,9.816e-05,2]
[402304288,1768653039049,-500.0,9.816e-05,2]
[402304289,1768653039058,-500.0,9.816e-05,2]
[402304290,1768653039068,-500.0,9.816e-05,2]
[402304291,1768653039077,-500.0,9.816e-05,2]
[402304292,1768653039086,-521.63338247,9.816e-05,2]
[402304293,1768653039096,-500.0,9.816e-05,2]
[402304294,1768653039105,-500.0,9.816e-05,2]
[402304295,1768653039115,-500.0,9.816e-05,2]
[402304296,1768653039124,-500.0,9.816e-05,2]
[402304297,1768653039134,-500.0,9.816e-05,2]
[402304298,1768653039144,-500.0,9.816e-05,2]
[402304299,1768653039153,-500.0,9.816e-05,2]
[402304300,1768653039163,-500.0,9.816e-05,2]
[402304301,1768653039173,-500.0,9.816e-05,2]
[402304302,1768653039182,-500.0,9.816e-05,2]
[402304303,1768653039192,-500.0,9.816e-05,2]
[402304304,1768653039201,-266.25453486,9.816e-05,2]
[402304305,1768653039210,-500.0,9.816e-05,2]
[402304306,1768653039220,-500.0,9.816e-05,2]
[402304307,1768653039229,-500.0,9.816e-05,2]
[402304308,1768653039239,-500.0,9.816e-05,2]
[402304309,1768653039249,-500.0,9.816e-05,2]
[402304310,1768653039258,-500.0,9.816e-05,2]
[402304311,1768653039268,-500.0,9.816e-05,2]
[402304312,1768653039278,-500.0,9.816e-05,2]
[402304313,1768653039288,-500.0,9.816e-05,2]
[402304314,1768653039297,-500.0,9.816e-05,2]
[402304315,1768653039308,-500.0,9.816e-05,2]
[402304316,1768653039317,-500.0,9.816e-05,2]
[402304317,1768653039327,-500.0,9.816e-05,2]
[402304318,1768653039337,-500.0,9.816e-05,2]
[402304319,1768653039347,-500.0,9.816e-05,2]
[402304320,1768653039357,-500.0,9.816e-05,2]
[402304321,1768653039367,-500.0,9.816e-05,2]
[402304322,1768653039376,-500.0,9.816e-05,2]
[402304323,1768653039386,-500.0,9.816e-05,2]
[402304324,1768653039396,-500.0,9.816e-05,2]
[402304325,1768653039405,-500.0,9.816e-05,2]
[402304326,1768653039414,-500.0,9.816e-05,2]
[402304327,1768653039424,-500.0,9.816e-05,2]
[402304328,1768653039434,-259.19370996,9.816e-05,2]
[402304329,1768653039444,-500.0,9.816e-05,2]
[402304330,1768653039454,-500.0,9.816e-05,2]
[402304331,1768653039465,-300.0,9.816e-05,2]
[402304332,1768653039474,-500.0,9.816e-05,2]
[402304333,1768653039484,-500.0,9.816e-05,2]
[402304334,1768653039493,-523.27301354,9.816e-05,2]
[402304335,1768653039505,-500.0,9.816e-05,2]
[402304336,1768653039514,-500.0,9.816e-05,2]
[402304337,1768653039525,-500.0,9.816e-05,2]
[402304338,1768653039534,-500.0,9.816e-05,2]
[402304339,1768653039543,-500.0,9.816e-05,2]
[402304340,1768653039553,-500.0,9.816e-05,2]
[402304341,1768653039562,-500.0,9.816e-05,2]
[402304342,1768653039571,-500.0,9.816e-05,2]
[402304343,1768653039580,-500.0,9.816e-05,2]
[402304344,1768653039590,-500.0,9.816e-05,2]
[402304345,1768653039600,-500.0,9.816e-05,2]
[402304346,1768653039610,-500.0,9.816e-05,2]
[402304347,1768653039620,-500.0,9.816e-05,2]
[402304348,1768653039631,-500.0,9.816e-05,2]
[402304349,1768653039641,-500.0,9.816e-05,2]
[402304350,1768653039650,-500.0,9.816e-05,2]
[402304351,1768653039660,-500.0,9.816e-05,2]
[402304352,1768653039670,-500.0,9.816e-05,2]
[402304353,1768653039680,-500.0,9.816e-05,2]
[402304354,1768653039692,-500.0,9.816e-05,2]
[402304355,1768653039701,-500.0,9.816e-05,2]
[402304356,1768653039711,-500.0,9.816e-05,2]
[402304357,1768653039722,-500.0,9.816e-05,2]
[402304358,1768653039733,-500.0,9.816e-05,2]
[402304359,1768653039745,-500.0,9.816e-05,2]
[402304360,1768653039756,-500.0,9.816e-05,2]
[402304361,1768653039766,-500.0,9.816e-05,2]
[402304362,1768653039776,-500.0,9.816e-05,2]
[402304363,1768653039787,-500.0,9.816e-05,2]
[402304364,1768653039796,-500.0,9.816e-05,2]
[402304365,1768653039807,-500.0,9.816e-05,2]
[402304366,1768653039816,-500.0,9.816e-05,2]
[402304367,1768653039826,-500.0,9.816e-05,2]
[402304368,1768653039835,-262.76999993,9.816e-05,2]
[402304369,1768653039845,-500.0,9.816e-05,2]
[402304370,1768653039854,-500.0,9.816e-05,2]
[402304371,1768653039865,-500.0,9.816e-05,2]
[402304372,1768653039874,-500.0,9.816e-05,2]
[402304373,1768653039884,-500.0,9.816e-05,2]
[402304374,1768653039894,-500.0,9.816e-05,2]
[402304375,1768653039904,-226.63183825,9.816e-05,2]
[402304376,1768653039914,-500.0,9.816e-05,2]
[402304377,1768653039923,-500.0,9.816e-05,2]
[402304378,1768653039932,-500.0,9.816e-05,2]
[402304379,1768653039943,-500.0,9.816e-05,2]
[402304380,1768653039953,-500.0,9.816e-05,2]
[402304381,1768653039962,-500.0,9.816e-05,2]
[402304382,1768653039972,-500.0,9.816e-05,2]
[402304383,1768653039981,-500.0,9.816e-05,2]
[402304384,1768653039990,-500.0,9.816e-05,2]
[402304385,1768653039999,-500.0,9.816e-05,2]
[402304386,1768653040010,-500.0,9.816e-05,2]
[402304387,1768653040020,-500.0,9.816e-05,2]
[402304388,1768653040029,-500.0,9.816e-05,2]
[402304389,1768653040039,-500.0,9.816e-05,2]
[402304390,1768653040049,-500.0,9.816e-05,2]
[402304391,1768653040059,-500.0,9.816e-05,2]
[402304392,1768653040069,-500.0,9.816e-05,2]
[402304393,1768653040078,-500.0,9.816e-05,2]
[402304394,1768653040088,-210.77816568,9.816e-05,2]
[402304395,1768653040097,-500.0,9.816e-05,2]
[402304396,1768653040107,-500.0,9.816e-05,2]
[402304397,1768653040116,-500.0,9.816e-05,2]
[402304398,1768653040127,-500.0,9.816e-05,2]
[402304399,1768653040137,-500.0,9.816e-05,2]
[402304401,1768653040147,-500.0,9.816e-05,2]
[402304402,1768653040156,-500.0,9.816e-05,2]
[402304403,1768653040165,-500.0,9.816e-05,2]
[402304404,1768653040174,-500.0,9.816e-05,2]
[402304405,1768653040185,-500.0,9.816e-05,2]
[402304406,1768653040194,-500.0,9.816e-05,2]
[402304407,1768653040203,-500.0,9.816e-05,2]
[402304408,1768653040212,-500.0,9.816e-05,2]
[402304409,1768653040221,-500.0,9.816e-05,2]
[402304410,1768653040230,-500.0,9.816e-05,2]
[402304412,1768653040239,-500.0,9.816e-05,2]
[402304414,1768653040248,-500.0,9.816e-05,2]
[402304415,1768653040256,-500.0,9.816e-05,2]
[402304416,1768653040265,-500.0,9.816e-05,2]
[402304417,1768653040274,-500.0,9.816e-05,2]
[402304418,1768653040283,-500.0,9.816e-05,2]
[402304419,1768653040292,-500.0,9.816e-05,2]
[402304420,1768653040301,-500.0,9.816e-05,2]
[402304421,1768653040310,-500.0,9.816e-05,2]
[402304422,1768653040319,-500.0,9.816e-05,2]
[402304423,1768653040328,-500.0,9.816e-05,2]
[402304424,1768653040337,-500.0,9.816e-05,2]
[402304425,1768653040346,-500.0,9.816e-05,2]
[402304426,1768653040355,-500.0,9.816e-05,2]
[402304427,1768653040363,-500.0,9.816e-05,2]
[402304428,1768653040372,-500.0,9.816e-05,2]
[402304429,1768653040382,-500.0,9.816e-05,2]
[402304430,1768653040391,-500.0,9.816e-05,2]
[402304431,1768653040400,-500.0,9.816e-05,2]
[402304432,1768653040409,-500.0,9.816e-05,2]
[402304433,1768653040417,-500.0,9.816e-05,2]
[402304434,1768653040426,-500.0,9.816e-05,2]
[402304435,1768653040435,-500.0,9.816e-05,2]
[402304436,1768653040443,-500.0,9.816e-05,2]
[402304437,1768653040452,-457.53824791,9.816e-05,2]
[402304438,1768653040461,-500.0,9.816e-05,2]
[402304439,1768653040470,-500.0,9.816e-05,2]
[402304440,1768653040480,-500.0,9.816e-05,2]
[402304441,1768653040490,-500.0,9.816e-05,2]
[402304442,1768653040501,-500.0,9.816e-05,2]
[402304443,1768653040511,-500.0,9.816e-05,2]
[402304444,1768653040521,-500.0,9.816e-05,2]
[402304445,1768653040530,-500.0,9.816e-05,2]
[402304446,1768653040539,-499.99999999,9.816e-05,2]
[402304448,1768653040548,-500.0,9.816e-05,2]
[402304449,1768653040557,-500.0,9.816e-05,2]
[402304451,1768653040567,-200.0,9.816e-05,2]
[402304452,1768653040577,-500.0,9.816e-05,2]
[402304454,1768653040586,-500.0,9.816e-05,2]
[402304456,1768653040596,-500.0,9.816e-05,2]
[402304458,1768653040606,-27951.87229809,9.817e-05,2]
[402304461,1768653040616,-477.29,9.9e-05,2]
[402304462,1768653040625,-156.19142878,9.997e-05,2]
[402304464,1768653040635,-500.0,9.999e-05,2]
[402304466,1768653040644,-500.0,9.999e-05,2]
[402304468,1768653040654,-500.0,9.999e-05,2]
[402304470,1768653040663,-500.0,9.999e-05,2]
[402304472,1768653040672,-500.0,9.999e-05,2]
[402304474,1768653040681,-240.05635657,9.999e-05,2]
[402304476,1768653040690,-500.0,9.999e-05,2]
[402304478,1768653040699,-500.0,9.999e-05,2]
[402304480,1768653040708,-367.56536064,9.999e-05,2]
[402304482,1768653040718,-500.0,9.999e-05,2]
[402304484,1768653040727,-500.0,9.999e-05,2]
[402304486,1768653040737,-500.0,9.999e-05,2]
[402304488,1768653040747,-560.13149867,9.999e-05,2]
[402304490,1768653040756,-27532.08904412,0.0001,2]
[402304492,1768653040766,-247.84065001,0.0001,2]
[402304494,1768653040775,-3293.21134449,0.0001,2]
[402304496,1768653040784,-532.21930964,0.0001,2]
[402304498,1768653040793,-500.0,0.0001009,2]
[402304500,1768653040803,-500.0,0.00010364,2]
[402304502,1768653040813,-500.0,0.000104,2]
[402304504,1768653040823,-500.0,0.000104,2]
[402304506,1768653040832,-747.64056692,0.000104,2]
[402304508,1768653040842,-500.0,0.00010638,2]
[402304510,1768653040851,-300.0,0.00010796,2]
[402304512,1768653040861,-300.0,0.00010796,2]
[402304514,1768653040871,-420.0,0.00010796,2]
[402304516,1768653040881,-1680.0,0.00010796,2]
[402304518,1768653040890,-700.09854075,0.00010878,2]
[402304520,1768653040899,-500.0,0.00010912,2]
[402304521,1768653040910,-344.5905002,0.00010959,2]
[402304523,1768653040919,-151.0,0.00011,2]
[402304525,1768653040929,-151.0,0.00011,2]
[402304527,1768653040938,-365.65814595,0.00011064,2]
[402304529,1768653040947,-151.0,0.000111,2]
[402304531,1768653040956,-151.0,0.000111,2]
[402304533,1768653040966,-500.0,0.00011186,2]
[402304535,1768653040974,-151.0,0.000112,2]
[402304536,1768653040984,-151.0,0.000112,2]
[402304539,1768653040994,-151.0,0.000113,2]
[402304540,1768653041004,-151.0,0.000113,2]
[402304542,1768653041013,-151.0,0.000114,2]
[402304544,1768653041022,-151.0,0.000114,2]
[402304546,1768653041033,-500.0,0.0001146,2]
[402304548,1768653041042,-151.0,0.000115,2]
[402304550,1768653041051,-151.0,0.000115,2]
[402304552,1768653041060,-151.0,0.000115,2]
[402304554,1768653041070,-151.0,0.000115,2]
[402304556,1768653041079,-151.0,0.000116,2]
[402304558,1768653041089,-151.0,0.000116,2]
[402304560,1768653041099,-151.0,0.000117,2]
[402304562,1768653041108,-151.0,0.000117,2]
[402304564,1768653041117,-500.0,0.00011734,2]
[402304566,1768653041126,-151.0,0.000118,2]
[402304568,1768653041135,-25479.23253355,0.000118,2]
[402304570,1768653041145,-151.0,0.000118,2]
[402304572,1768653041154,-408.0,0.00011876,2]
[402304574,1768653041164,-2351.0,0.00011876,2]
[402304576,1768653041173,-151.0,0.000119,2]
[402304578,1768653041183,-151.0,0.000119,2]
[402304580,1768653041192,-151.0,0.000119,2]
[402304582,1768653041201,-151.0,0.000119,2]
[402304584,1768653041210,-151.0,0.000119,2]
[402304585,1768653041219,-151.0,0.000119,2]
[402304587,1768653041228,-151.0,0.000119,2]
[402304589,1768653041237,-151.0,0.000119,2]
[402304591,1768653041246,-151.0,0.000119,2]
[402304593,1768653041256,-151.0,0.000119,2]
[402304595,1768653041265,-500.0,0.00012008,2]
[402304597,1768653041274,-500.0,0.00012055,2]
[402304599,1768653041284,-197.19915157,0.00012055,2]
[402304601,1768653041293,-500.0,0.00012055,2]